[Event "Titled Tuesday Blitz January 11 2022"]
[White "Jones, Gawain C B"]
[Black "Taboas Rodriguez, Daniel"]
[WhiteFideId "409561"]
[BlackFideId "2208466"]
[WhiteElo "2657"]
[BlackElo "2429"]
[Result "0-1"]
[Round "04"]
[TimeControl "180+1"]
[Date "2022.01.11"]
[WhiteClock "0:00:05"]
[BlackClock "0:00:06"]

1. Nf3 {[%clk 0:03:00]}  Nf6 {[%clk 0:02:58]} 2. g3 {[%clk 0:03:00]}  b6 {[%clk 0:02:58]} 3. Bg2 {[%clk 0:03:00]}  Bb7 {[%clk 0:02:59]} 4. O-O {[%clk 0:03:01]}  g6 {[%clk 0:03:00]} 5. c4 {[%clk 0:03:01]}  Bg7 {[%clk 0:03:00]} 6. Nc3 {[%clk 0:02:59]}  O-O {[%clk 0:03:00]} 7. Re1 {[%clk 0:02:59]}  Ne4 {[%clk 0:02:59]} 8. Nxe4 {[%clk 0:02:59]}  Bxe4 {[%clk 0:02:59]} 9. d3 {[%clk 0:02:59]}  Bb7 {[%clk 0:02:59]} 10. e4 {[%clk 0:02:59]}  c5 {[%clk 0:02:59]} 11. d4 {[%clk 0:02:54]}  cxd4 {[%clk 0:02:55]} 12. Nxd4 {[%clk 0:02:55]}  Nc6 {[%clk 0:02:55]} 13. Be3 {[%clk 0:02:54]}  Rc8 {[%clk 0:02:54]} 14. Rc1 {[%clk 0:02:52]}  Nxd4 {[%clk 0:02:49]} 15. Bxd4 {[%clk 0:02:52]}  d6 {[%clk 0:02:48]} 16. b3 {[%clk 0:02:36]}  Bxd4 {[%clk 0:02:43]} 17. Qxd4 {[%clk 0:02:36]}  Rc5 {[%clk 0:02:44]} 18. Rcd1 {[%clk 0:02:31]}  Qa8 {[%clk 0:02:42]} 19. a4 {[%clk 0:02:19]}  Rfc8 {[%clk 0:02:39]} 20. Bh3 {[%clk 0:02:11]}  Rf8 {[%clk 0:02:17]} 21. Rd3 {[%clk 0:02:02]}  Re5 {[%clk 0:02:17]} 22. Rde3 {[%clk 0:01:59]}  Qb8 {[%clk 0:01:45]} 23. f4 {[%clk 0:01:54]}  Rc5 {[%clk 0:01:45]} 24. Rd1 {[%clk 0:01:46]}  Qc7 {[%clk 0:01:36]} 25. Qd2 {[%clk 0:01:29]}  Bc8 {[%clk 0:01:33]} 26. Bg2 {[%clk 0:01:24]}  Bg4 {[%clk 0:01:33]} 27. Rde1 {[%clk 0:01:24]}  a6 {[%clk 0:01:34]} 28. e5 {[%clk 0:01:21]}  dxe5 {[%clk 0:01:33]} 29. Rxe5 {[%clk 0:01:21]}  Be6 {[%clk 0:01:23]} 30. Qe3 {[%clk 0:01:12]}  Rxe5 {[%clk 0:01:22]} 31. Qxe5 {[%clk 0:01:12]}  Qxe5 {[%clk 0:01:21]} 32. Rxe5 {[%clk 0:01:13]}  Rd8 {[%clk 0:01:19]} 33. a5 {[%clk 0:01:11]}  Rb8 {[%clk 0:01:12]} 34. axb6 {[%clk 0:00:41]}  Rxb6 {[%clk 0:01:13]} 35. c5 {[%clk 0:00:41]}  Rxb3 {[%clk 0:01:10]} 36. c6 {[%clk 0:00:41]}  Rc3 {[%clk 0:00:57]} 37. Be4 {[%clk 0:00:29]}  Kf8 {[%clk 0:00:52]} 38. Ra5 {[%clk 0:00:25]}  Bc8 {[%clk 0:00:52]} 39. Ra2 {[%clk 0:00:18]}  Ke8 {[%clk 0:00:50]} 40. Rd2 {[%clk 0:00:18]}  a5 {[%clk 0:00:46]} 41. Kf2 {[%clk 0:00:11]}  a4 {[%clk 0:00:40]} 42. Rd4 {[%clk 0:00:11]}  a3 {[%clk 0:00:40]} 43. Ra4 {[%clk 0:00:11]}  Kd8 {[%clk 0:00:39]} 44. Bd5 {[%clk 0:00:09]}  Be6 {[%clk 0:00:35]} 45. Ra8+ {[%clk 0:00:06]}  Kc7 {[%clk 0:00:36]} 46. Ra7+ {[%clk 0:00:06]}  Kd6 {[%clk 0:00:32]} 47. Bxe6 {[%clk 0:00:06]}  fxe6 {[%clk 0:00:29]} 48. c7 {[%clk 0:00:06]}  Rxc7 {[%clk 0:00:20]} 49. Rxa3 {[%clk 0:00:06]}  Rc2+ {[%clk 0:00:21]} 50. Ke3 {[%clk 0:00:05]}  Rxh2 {[%clk 0:00:20]} 51. Ra6+ {[%clk 0:00:05]}  Kd7 {[%clk 0:00:20]} 52. Ke4 {[%clk 0:00:04]}  Ke8 {[%clk 0:00:20]} 53. Kf3 {[%clk 0:00:04]}  Kf7 {[%clk 0:00:20]} 54. Ra7 {[%clk 0:00:04]}  Rb2 {[%clk 0:00:21]} 55. Ra5 {[%clk 0:00:04]}  h5 {[%clk 0:00:21]} 56. Rc5 {[%clk 0:00:03]}  Rb6 {[%clk 0:00:20]} 57. Kg2 {[%clk 0:00:03]}  Rd6 {[%clk 0:00:21]} 58. Kh3 {[%clk 0:00:04]}  Rd5 {[%clk 0:00:22]} 59. Rc8 {[%clk 0:00:04]}  e5 {[%clk 0:00:22]} 60. fxe5 {[%clk 0:00:05]}  Rxe5 {[%clk 0:00:23]} 61. Kh4 {[%clk 0:00:05]}  Re4+ {[%clk 0:00:23]} 62. Kh3 {[%clk 0:00:06]}  e5 {[%clk 0:00:22]} 63. Rc6 {[%clk 0:00:06]}  Re1 {[%clk 0:00:21]} 64. Kh4 {[%clk 0:00:06]}  Re3 {[%clk 0:00:18]} 65. Ra6 {[%clk 0:00:05]}  Kg7 {[%clk 0:00:17]} 66. Kh3 {[%clk 0:00:03]}  Kh6 {[%clk 0:00:17]} 67. Ra8 {[%clk 0:00:03]}  Kg5 {[%clk 0:00:18]} 68. Kg2 {[%clk 0:00:04]}  e4 {[%clk 0:00:15]} 69. Ra6 {[%clk 0:00:03]}  Kf5 {[%clk 0:00:12]} 70. Kh3 {[%clk 0:00:02]}  Re1 {[%clk 0:00:12]} 71. Ra5+ {[%clk 0:00:03]}  Kf6 {[%clk 0:00:12]} 72. Ra6+ {[%clk 0:00:03]}  Kg7 {[%clk 0:00:12]} 73. Kh4 {[%clk 0:00:03]}  e3 {[%clk 0:00:10]} 74. Kg5 {[%clk 0:00:03]}  e2 {[%clk 0:00:10]} 75. Rxg6+ {[%clk 0:00:03]}  Kf7 {[%clk 0:00:11]} 76. Rf6+ {[%clk 0:00:04]}  Ke7 {[%clk 0:00:11]} 77. Rf2 {[%clk 0:00:05]}  Ke6 {[%clk 0:00:09]} 78. Rh2 {[%clk 0:00:04]}  Ke5 {[%clk 0:00:06]} 79. Kxh5 {[%clk 0:00:04]}  Ke4 {[%clk 0:00:06]} 80. g4 {[%clk 0:00:05]}  Kf3 {[%clk 0:00:07]} 81. g5 {[%clk 0:00:05]}  Rg1 {[%clk 0:00:06]} 82. Rxe2 {[%clk 0:00:05]}  Kxe2 {[%clk 0:00:06]} 83. Kg6 {[%clk 0:00:06]}  Kf3 {[%clk 0:00:06]} 84. Kf6 {[%clk 0:00:06]}  Kg4 {[%clk 0:00:05]} 85. g6 {[%clk 0:00:05]}  Kh5 {[%clk 0:00:06]} 86. g7 {[%clk 0:00:05]}  Kh6 {[%clk 0:00:06]} 0-1


[Site "https://www.chess.com"]

[Event "Titled Tuesday Blitz January 11 2022"]
[White "Kevlishvili, Robby"]
[Black "Sorokin, Aleksey"]
[WhiteFideId "1040634"]
[BlackFideId "24176460"]
[WhiteElo "2584"]
[BlackElo "2476"]
[Result "1-0"]
[Round "04"]
[TimeControl "180+1"]
[Date "2022.01.11"]
[WhiteClock "0:00:39"]
[BlackClock "0:01:17"]

1. e4 {[%clk 0:03:00]}  c6 {[%clk 0:02:57]} 2. Nf3 {[%clk 0:03:00]}  d5 {[%clk 0:02:58]} 3. Nc3 {[%clk 0:03:01]}  dxe4 {[%clk 0:02:55]} 4. Nxe4 {[%clk 0:03:01]}  Nf6 {[%clk 0:02:56]} 5. Qe2 {[%clk 0:03:01]}  Nxe4 {[%clk 0:02:56]} 6. Qxe4 {[%clk 0:03:02]}  Qd5 {[%clk 0:02:56]} 7. Qf4 {[%clk 0:02:58]}  Qf5 {[%clk 0:02:54]} 8. Qe3 {[%clk 0:02:58]}  Qe6 {[%clk 0:02:54]} 9. b3 {[%clk 0:02:58]}  f6 {[%clk 0:02:53]} 10. Bb2 {[%clk 0:02:55]}  Qxe3+ {[%clk 0:02:51]} 11. fxe3 {[%clk 0:02:56]}  Bg4 {[%clk 0:02:50]} 12. O-O-O {[%clk 0:02:55]}  Nd7 {[%clk 0:02:50]} 13. Be2 {[%clk 0:02:54]}  e6 {[%clk 0:02:49]} 14. h3 {[%clk 0:02:54]}  Bh5 {[%clk 0:02:48]} 15. g4 {[%clk 0:02:52]}  Bg6 {[%clk 0:02:49]} 16. h4 {[%clk 0:02:48]}  h6 {[%clk 0:02:48]} 17. g5 {[%clk 0:02:46]}  hxg5 {[%clk 0:02:45]} 18. hxg5 {[%clk 0:02:46]}  Rxh1 {[%clk 0:02:44]} 19. Rxh1 {[%clk 0:02:47]}  Kf7 {[%clk 0:02:43]} 20. Rf1 {[%clk 0:02:37]}  Bd6 {[%clk 0:02:38]} 21. Nh4 {[%clk 0:02:27]}  Rh8 {[%clk 0:02:31]} 22. Nxg6 {[%clk 0:02:26]}  Kxg6 {[%clk 0:02:31]} 23. gxf6 {[%clk 0:02:22]}  gxf6 {[%clk 0:02:31]} 24. a4 {[%clk 0:02:13]}  Rh2 {[%clk 0:02:25]} 25. Bc4 {[%clk 0:02:11]}  Kf7 {[%clk 0:02:25]} 26. Bd4 {[%clk 0:02:09]}  a6 {[%clk 0:02:21]} 27. Bc3 {[%clk 0:02:02]}  Ke7 {[%clk 0:02:15]} 28. Rg1 {[%clk 0:01:58]}  Kf7 {[%clk 0:02:13]} 29. Bd3 {[%clk 0:01:50]}  Be5 {[%clk 0:02:07]} 30. Bb4 {[%clk 0:01:44]}  f5 {[%clk 0:02:06]} 31. a5 {[%clk 0:01:40]}  Nf6 {[%clk 0:02:06]} 32. Bc4 {[%clk 0:01:37]}  Ne4 {[%clk 0:01:59]} 33. d3 {[%clk 0:01:21]}  Nd6 {[%clk 0:01:57]} 34. d4 {[%clk 0:01:13]}  Nxc4 {[%clk 0:01:56]} 35. bxc4 {[%clk 0:01:13]}  Bg7 {[%clk 0:01:52]} 36. Bd6 {[%clk 0:01:06]}  Rh3 {[%clk 0:01:46]} 37. Bf4 {[%clk 0:01:03]}  Bh6 {[%clk 0:01:46]} 38. Bxh6 {[%clk 0:01:01]}  Rxh6 {[%clk 0:01:47]} 39. Kd2 {[%clk 0:01:02]}  Rh3 {[%clk 0:01:46]} 40. Rb1 {[%clk 0:01:01]}  Kf6 {[%clk 0:01:17]} 41. Rxb7 {[%clk 0:01:01]}  f4 {[%clk 0:01:18]} 42. exf4 {[%clk 0:00:51]}  Ra3 {[%clk 0:01:17]} 43. Rb6 {[%clk 0:00:48]}  Rxa5 {[%clk 0:01:17]} 44. Rxc6 {[%clk 0:00:48]}  Kf5 {[%clk 0:01:18]} 45. Rc5+ {[%clk 0:00:35]}  Rxc5 {[%clk 0:01:18]} 46. dxc5 {[%clk 0:00:35]}  Kf6 {[%clk 0:01:17]} 47. Kc3 {[%clk 0:00:36]}  Ke7 {[%clk 0:01:18]} 48. Kb4 {[%clk 0:00:37]}  Kd7 {[%clk 0:01:18]} 49. Ka5 {[%clk 0:00:37]}  Kc6 {[%clk 0:01:19]} 50. Kxa6 {[%clk 0:00:38]}  Kxc5 {[%clk 0:01:20]} 51. Kb7 {[%clk 0:00:39]}  Kxc4 {[%clk 0:01:17]} 52. Kc6 {[%clk 0:00:39]} 1-0


[Site "https://www.chess.com"]

[Event "Titled Tuesday Blitz January 11 2022"]
[White "Kosakowski, Jakub"]
[Black "Guseinov, Gadir"]
[WhiteFideId "1185080"]
[BlackFideId "13401378"]
[WhiteElo "2476"]
[BlackElo "2581"]
[Result "0-1"]
[Round "04"]
[TimeControl "180+1"]
[Date "2022.01.11"]
[WhiteClock "0:00:05"]
[BlackClock "0:00:23"]

1. e4 {[%clk 0:03:00]}  c5 {[%clk 0:02:59]} 2. Nf3 {[%clk 0:03:00]}  g6 {[%clk 0:02:59]} 3. c3 {[%clk 0:02:59]}  d5 {[%clk 0:02:58]} 4. exd5 {[%clk 0:03:00]}  Qxd5 {[%clk 0:02:59]} 5. d4 {[%clk 0:03:00]}  Nf6 {[%clk 0:02:57]} 6. Be2 {[%clk 0:02:58]}  cxd4 {[%clk 0:02:56]} 7. cxd4 {[%clk 0:02:56]}  Bg7 {[%clk 0:02:57]} 8. Nc3 {[%clk 0:02:56]}  Qd6 {[%clk 0:02:57]} 9. O-O {[%clk 0:02:55]}  O-O {[%clk 0:02:56]} 10. h3 {[%clk 0:02:52]}  Nc6 {[%clk 0:02:56]} 11. d5 {[%clk 0:02:44]}  Nb4 {[%clk 0:02:44]} 12. Bc4 {[%clk 0:02:43]}  Rd8 {[%clk 0:02:44]} 13. Qb3 {[%clk 0:02:28]}  Nbxd5 {[%clk 0:02:33]} 14. Rd1 {[%clk 0:02:28]}  Be6 {[%clk 0:02:29]} 15. Bg5 {[%clk 0:02:24]}  b5 {[%clk 0:02:09]} 16. Nxb5 {[%clk 0:02:10]}  Qb6 {[%clk 0:02:08]} 17. Bxf6 {[%clk 0:02:06]}  Nxf6 {[%clk 0:02:04]} 18. Bxe6 {[%clk 0:02:06]}  fxe6 {[%clk 0:01:45]} 19. Re1 {[%clk 0:01:40]}  Nd5 {[%clk 0:01:41]} 20. Ng5 {[%clk 0:01:36]}  a6 {[%clk 0:01:33]} 21. Nxe6 {[%clk 0:00:44]}  Qxb5 {[%clk 0:01:29]} 22. Nxd8 {[%clk 0:00:45]}  Rxd8 {[%clk 0:01:22]} 23. Rad1 {[%clk 0:00:39]}  Qxb3 {[%clk 0:01:20]} 24. axb3 {[%clk 0:00:40]}  Kf7 {[%clk 0:01:20]} 25. Re4 {[%clk 0:00:38]}  e6 {[%clk 0:01:18]} 26. Rd2 {[%clk 0:00:37]}  Rb8 {[%clk 0:01:16]} 27. Ra4 {[%clk 0:00:31]}  Rb6 {[%clk 0:01:13]} 28. Kf1 {[%clk 0:00:31]}  g5 {[%clk 0:01:13]} 29. g3 {[%clk 0:00:31]}  Bf6 {[%clk 0:01:13]} 30. Ke2 {[%clk 0:00:31]}  h6 {[%clk 0:01:13]} 31. Kf3 {[%clk 0:00:32]}  Rxb3+ {[%clk 0:01:13]} 32. Kg2 {[%clk 0:00:30]}  Rb6 {[%clk 0:01:12]} 33. b3 {[%clk 0:00:22]}  Be7 {[%clk 0:01:11]} 34. Rc2 {[%clk 0:00:21]}  Bb4 {[%clk 0:01:09]} 35. Rc8 {[%clk 0:00:21]}  a5 {[%clk 0:01:08]} 36. Ra2 {[%clk 0:00:19]}  Ne7 {[%clk 0:01:07]} 37. Ra8 {[%clk 0:00:19]}  Rd6 {[%clk 0:01:06]} 38. Rc2 {[%clk 0:00:19]}  Rd3 {[%clk 0:01:05]} 39. Re2 {[%clk 0:00:16]}  Nf5 {[%clk 0:00:59]} 40. Ra6 {[%clk 0:00:16]}  Nd4 {[%clk 0:00:59]} 41. Re4 {[%clk 0:00:15]}  Rd2 {[%clk 0:00:56]} 42. h4 {[%clk 0:00:15]}  Kf6 {[%clk 0:00:55]} 43. hxg5+ {[%clk 0:00:16]}  hxg5 {[%clk 0:00:56]} 44. Ra8 {[%clk 0:00:14]}  Nxb3 {[%clk 0:00:51]} 45. Rh8 {[%clk 0:00:13]}  Nc5 {[%clk 0:00:49]} 46. Re3 {[%clk 0:00:11]}  a4 {[%clk 0:00:49]} 47. Rf3+ {[%clk 0:00:11]}  Ke7 {[%clk 0:00:45]} 48. Rb8 {[%clk 0:00:09]}  Rb2 {[%clk 0:00:42]} 49. Kh3 {[%clk 0:00:07]}  a3 {[%clk 0:00:42]} 50. Kg4 {[%clk 0:00:07]}  a2 {[%clk 0:00:42]} 51. Ra8 {[%clk 0:00:08]}  Ne4 {[%clk 0:00:37]} 52. Re3 {[%clk 0:00:07]}  Nxf2+ {[%clk 0:00:36]} 53. Kh5 {[%clk 0:00:08]}  Nd1 {[%clk 0:00:31]} 54. Rd3 {[%clk 0:00:08]}  Nc3 {[%clk 0:00:30]} 55. Ra7+ {[%clk 0:00:08]}  Kf6 {[%clk 0:00:30]} 56. Rad7 {[%clk 0:00:04]}  a1=Q {[%clk 0:00:24]} 57. Rf3+ {[%clk 0:00:04]}  Ke5 {[%clk 0:00:24]} 58. Re3+ {[%clk 0:00:05]}  Ne4 {[%clk 0:00:23]} 0-1


[Site "https://www.chess.com"]

[Event "Titled Tuesday Blitz January 11 2022"]
[White "Kucuksari, Kaan"]
[Black "Babazada, Khazar"]
[WhiteFideId "6380166"]
[BlackFideId "13413554"]
[WhiteElo "2305"]
[BlackElo "2418"]
[Result "0-1"]
[Round "04"]
[TimeControl "180+1"]
[Date "2022.01.11"]
[WhiteClock "0:00:03"]
[BlackClock "0:00:52"]

1. d4 {[%clk 0:03:00]}  Nf6 {[%clk 0:02:59]} 2. c4 {[%clk 0:03:01]}  g6 {[%clk 0:02:58]} 3. g3 {[%clk 0:03:02]}  Bg7 {[%clk 0:02:57]} 4. Bg2 {[%clk 0:03:02]}  O-O {[%clk 0:02:57]} 5. Nc3 {[%clk 0:03:02]}  d6 {[%clk 0:02:56]} 6. Nf3 {[%clk 0:03:03]}  Nc6 {[%clk 0:02:55]} 7. O-O {[%clk 0:03:02]}  a6 {[%clk 0:02:54]} 8. b3 {[%clk 0:02:59]}  Rb8 {[%clk 0:02:55]} 9. Bg5 {[%clk 0:02:57]}  Bd7 {[%clk 0:02:55]} 10. Rc1 {[%clk 0:02:48]}  h6 {[%clk 0:02:51]} 11. Bd2 {[%clk 0:02:39]}  e5 {[%clk 0:02:50]} 12. dxe5 {[%clk 0:01:57]}  dxe5 {[%clk 0:02:51]} 13. Nd5 {[%clk 0:01:58]}  Re8 {[%clk 0:02:44]} 14. Bc3 {[%clk 0:01:55]}  Ne4 {[%clk 0:02:42]} 15. Bb2 {[%clk 0:01:54]}  Qc8 {[%clk 0:02:35]} 16. Qc2 {[%clk 0:01:18]}  Nc5 {[%clk 0:02:31]} 17. Rfd1 {[%clk 0:01:13]}  Bf5 {[%clk 0:02:26]} 18. Qd2 {[%clk 0:01:14]}  Kh7 {[%clk 0:02:12]} 19. Qe3 {[%clk 0:01:11]}  Ne4 {[%clk 0:01:41]} 20. g4 {[%clk 0:00:59]}  Nxf2 {[%clk 0:01:26]} 21. Qxf2 {[%clk 0:00:46]}  Bxg4 {[%clk 0:01:27]} 22. e4 {[%clk 0:00:43]}  f5 {[%clk 0:01:13]} 23. h3 {[%clk 0:00:36]}  Bh5 {[%clk 0:01:13]} 24. exf5 {[%clk 0:00:28]}  Qxf5 {[%clk 0:01:13]} 25. Rf1 {[%clk 0:00:26]}  e4 {[%clk 0:01:10]} 26. Nh4 {[%clk 0:00:19]}  Qxf2+ {[%clk 0:01:10]} 27. Rxf2 {[%clk 0:00:19]}  Bxb2 {[%clk 0:01:05]} 28. Rxb2 {[%clk 0:00:20]}  Kg7 {[%clk 0:01:05]} 29. Bf1 {[%clk 0:00:18]}  Ne5 {[%clk 0:01:02]} 30. Re1 {[%clk 0:00:17]}  c6 {[%clk 0:01:02]} 31. Nf4 {[%clk 0:00:16]}  Bf3 {[%clk 0:01:00]} 32. Bg2 {[%clk 0:00:12]}  g5 {[%clk 0:01:00]} 33. Nf5+ {[%clk 0:00:11]}  Kf6 {[%clk 0:00:59]} 34. Nd6 {[%clk 0:00:10]}  gxf4 {[%clk 0:00:57]} 35. Nxe8+ {[%clk 0:00:09]}  Rxe8 {[%clk 0:00:57]} 36. Kh2 {[%clk 0:00:08]}  Rg8 {[%clk 0:00:56]} 37. Rxe4 {[%clk 0:00:06]}  Rxg2+ {[%clk 0:00:51]} 38. Rxg2 {[%clk 0:00:07]}  Bxe4 {[%clk 0:00:52]} 39. Rf2 {[%clk 0:00:06]}  Kf5 {[%clk 0:00:49]} 40. Rf1 {[%clk 0:00:05]}  Bd3 {[%clk 0:00:48]} 41. Ra1 {[%clk 0:00:03]}  Ke4 {[%clk 0:00:49]} 42. Kg2 {[%clk 0:00:03]}  Ke3 {[%clk 0:00:49]} 43. Re1+ {[%clk 0:00:04]}  Be2 {[%clk 0:00:49]} 44. h4 {[%clk 0:00:03]}  f3+ {[%clk 0:00:50]} 45. Kg3 {[%clk 0:00:04]}  f2 {[%clk 0:00:50]} 46. Ra1 {[%clk 0:00:03]}  Nd3 {[%clk 0:00:51]} 47. Kg2 {[%clk 0:00:03]}  Ne1+ {[%clk 0:00:51]} 48. Kg3 {[%clk 0:00:03]}  f1=Q {[%clk 0:00:52]} 0-1


[Site "https://www.chess.com"]

[Event "Titled Tuesday Blitz January 11 2022"]
[White "Maghsoodloo, Parham"]
[Black "Gurevich, Dmitry"]
[WhiteFideId "12539929"]
[BlackFideId "2000407"]
[WhiteElo "2630"]
[BlackElo "2506"]
[Result "1-0"]
[Round "04"]
[TimeControl "180+1"]
[Date "2022.01.11"]
[WhiteClock "0:00:31"]
[BlackClock "0:00:04"]

1. e4 {[%clk 0:02:47]}  c5 {[%clk 0:02:58]} 2. Nf3 {[%clk 0:02:47]}  d6 {[%clk 0:02:55]} 3. d4 {[%clk 0:02:47]}  cxd4 {[%clk 0:02:50]} 4. Nxd4 {[%clk 0:02:48]}  Nf6 {[%clk 0:02:49]} 5. Nc3 {[%clk 0:02:49]}  Nc6 {[%clk 0:02:48]} 6. Bg5 {[%clk 0:02:48]}  g6 {[%clk 0:02:48]} 7. Bxf6 {[%clk 0:02:47]}  exf6 {[%clk 0:02:48]} 8. Qd2 {[%clk 0:02:44]}  Bg7 {[%clk 0:02:48]} 9. O-O-O {[%clk 0:02:39]}  Nxd4 {[%clk 0:02:42]} 10. Qxd4 {[%clk 0:02:38]}  O-O {[%clk 0:02:43]} 11. Qxd6 {[%clk 0:02:26]}  Qxd6 {[%clk 0:02:40]} 12. Rxd6 {[%clk 0:02:20]}  f5 {[%clk 0:02:41]} 13. Bd3 {[%clk 0:02:13]}  Be5 {[%clk 0:02:24]} 14. Rd5 {[%clk 0:02:13]}  Bxc3 {[%clk 0:02:23]} 15. bxc3 {[%clk 0:02:13]}  Be6 {[%clk 0:02:03]} 16. Rb5 {[%clk 0:02:12]}  fxe4 {[%clk 0:01:50]} 17. Bxe4 {[%clk 0:02:11]}  Rac8 {[%clk 0:01:50]} 18. Bxb7 {[%clk 0:02:08]}  Rxc3 {[%clk 0:01:48]} 19. Kb2 {[%clk 0:02:07]}  Rc7 {[%clk 0:01:43]} 20. Be4 {[%clk 0:01:58]}  Rc4 {[%clk 0:01:37]} 21. Bd3 {[%clk 0:01:54]}  Rc7 {[%clk 0:01:36]} 22. Re1 {[%clk 0:01:45]}  Rfc8 {[%clk 0:01:35]} 23. Re2 {[%clk 0:01:43]}  Kg7 {[%clk 0:01:34]} 24. a3 {[%clk 0:01:43]}  h5 {[%clk 0:01:33]} 25. h4 {[%clk 0:01:43]}  Bc4 {[%clk 0:01:30]} 26. Bxc4 {[%clk 0:01:41]}  Rxc4 {[%clk 0:01:30]} 27. Rb4 {[%clk 0:01:41]}  R4c5 {[%clk 0:01:24]} 28. g3 {[%clk 0:01:36]}  a5 {[%clk 0:01:22]} 29. Rb3 {[%clk 0:01:32]}  R8c6 {[%clk 0:01:19]} 30. Rd3 {[%clk 0:01:31]}  Rb6+ {[%clk 0:01:18]} 31. Ka2 {[%clk 0:01:24]}  Rcb5 {[%clk 0:01:11]} 32. c4 {[%clk 0:01:23]}  Rc5 {[%clk 0:01:09]} 33. Rc2 {[%clk 0:01:22]}  Rbc6 {[%clk 0:01:05]} 34. Kb3 {[%clk 0:01:16]}  Rf5 {[%clk 0:00:59]} 35. Rd5 {[%clk 0:01:11]}  Rf3+ {[%clk 0:00:52]} 36. Kb2 {[%clk 0:01:10]}  Rcf6 {[%clk 0:00:50]} 37. c5 {[%clk 0:01:05]}  Rxf2 {[%clk 0:00:36]} 38. Rxf2 {[%clk 0:01:04]}  Rxf2+ {[%clk 0:00:36]} 39. Kc3 {[%clk 0:01:04]}  Rf1 {[%clk 0:00:31]} 40. Kc4 {[%clk 0:00:49]}  Rc1+ {[%clk 0:00:26]} 41. Kb5 {[%clk 0:00:49]}  Kf6 {[%clk 0:00:24]} 42. c6 {[%clk 0:00:45]}  Ke7 {[%clk 0:00:23]} 43. Kb6 {[%clk 0:00:41]}  Rb1+ {[%clk 0:00:19]} 44. Rb5 {[%clk 0:00:34]}  Rxb5+ {[%clk 0:00:16]} 45. Kxb5 {[%clk 0:00:34]}  Kd8 {[%clk 0:00:16]} 46. Kxa5 {[%clk 0:00:34]}  f6 {[%clk 0:00:14]} 47. Kb5 {[%clk 0:00:35]}  g5 {[%clk 0:00:14]} 48. Kc5 {[%clk 0:00:35]}  Kc7 {[%clk 0:00:10]} 49. Kd5 {[%clk 0:00:30]}  gxh4 {[%clk 0:00:05]} 50. gxh4 {[%clk 0:00:31]}  f5 {[%clk 0:00:05]} 51. Ke5 {[%clk 0:00:31]}  Kxc6 {[%clk 0:00:04]} 52. Kxf5 {[%clk 0:00:31]} 1-0


[Site "https://www.chess.com"]

[Event "Titled Tuesday Blitz January 11 2022"]
[White "Makhnev, Denis"]
[Black "Zakhartsov, Vladimir"]
[WhiteFideId "13707647"]
[BlackFideId "4145097"]
[WhiteElo "2491"]
[BlackElo "2432"]
[Result "1-0"]
[Round "04"]
[TimeControl "180+1"]
[Date "2022.01.11"]
[WhiteClock "0:00:55"]
[BlackClock "0:00:13"]

1. Nf3 {[%clk 0:03:00]}  c5 {[%clk 0:02:58]} 2. g3 {[%clk 0:03:00]}  g6 {[%clk 0:02:58]} 3. Bg2 {[%clk 0:03:00]}  Bg7 {[%clk 0:02:59]} 4. O-O {[%clk 0:03:00]}  Nc6 {[%clk 0:03:00]} 5. c4 {[%clk 0:03:00]}  e6 {[%clk 0:02:59]} 6. Nc3 {[%clk 0:03:00]}  Nge7 {[%clk 0:03:00]} 7. e3 {[%clk 0:02:58]}  O-O {[%clk 0:03:00]} 8. d4 {[%clk 0:02:58]}  d6 {[%clk 0:02:59]} 9. b3 {[%clk 0:02:55]}  a6 {[%clk 0:02:59]} 10. Bb2 {[%clk 0:02:55]}  Rb8 {[%clk 0:02:59]} 11. dxc5 {[%clk 0:02:53]}  dxc5 {[%clk 0:02:59]} 12. Qe2 {[%clk 0:02:48]}  b5 {[%clk 0:02:56]} 13. Rfd1 {[%clk 0:02:46]}  Qa5 {[%clk 0:02:55]} 14. Ne4 {[%clk 0:02:41]}  bxc4 {[%clk 0:02:02]} 15. Bxg7 {[%clk 0:02:40]}  Kxg7 {[%clk 0:02:02]} 16. Qxc4 {[%clk 0:02:38]}  Rb4 {[%clk 0:01:35]} 17. Qc3+ {[%clk 0:02:37]}  f6 {[%clk 0:01:34]} 18. Nxc5 {[%clk 0:02:31]}  Rb5 {[%clk 0:01:26]} 19. Ne4 {[%clk 0:02:19]}  Qxc3 {[%clk 0:01:24]} 20. Nxc3 {[%clk 0:02:19]}  Rb8 {[%clk 0:01:24]} 21. Nd4 {[%clk 0:02:16]}  Nxd4 {[%clk 0:01:08]} 22. Rxd4 {[%clk 0:02:17]}  Rb6 {[%clk 0:01:07]} 23. Na4 {[%clk 0:02:10]}  Rb5 {[%clk 0:01:07]} 24. Rc1 {[%clk 0:02:10]}  Kf7 {[%clk 0:01:01]} 25. Rc7 {[%clk 0:02:09]}  Re8 {[%clk 0:00:57]} 26. Bc6 {[%clk 0:02:07]}  e5 {[%clk 0:00:46]} 27. Bxe8+ {[%clk 0:02:01]}  Kxe8 {[%clk 0:00:47]} 28. Rd6 {[%clk 0:01:58]}  Bh3 {[%clk 0:00:45]} 29. f3 {[%clk 0:01:32]}  a5 {[%clk 0:00:35]} 30. Rc5 {[%clk 0:01:31]}  Rb8 {[%clk 0:00:34]} 31. Rxa5 {[%clk 0:01:31]}  Nf5 {[%clk 0:00:31]} 32. Rxf6 {[%clk 0:01:29]}  Rd8 {[%clk 0:00:31]} 33. Rxe5+ {[%clk 0:01:28]}  Ne7 {[%clk 0:00:27]} 34. g4 {[%clk 0:01:26]}  Rd2 {[%clk 0:00:26]} 35. Rfe6 {[%clk 0:01:25]}  Rg2+ {[%clk 0:00:20]} 36. Kf1 {[%clk 0:01:23]}  Rxg4+ {[%clk 0:00:20]} 37. Ke1 {[%clk 0:01:22]}  Rg1+ {[%clk 0:00:20]} 38. Kd2 {[%clk 0:01:21]}  Rg2+ {[%clk 0:00:18]} 39. Kc3 {[%clk 0:01:20]}  Bxe6 {[%clk 0:00:19]} 40. Rxe6 {[%clk 0:01:20]}  Rxa2 {[%clk 0:00:20]} 41. h4 {[%clk 0:01:14]}  Kf7 {[%clk 0:00:20]} 42. Re4 {[%clk 0:01:13]}  Nd5+ {[%clk 0:00:18]} 43. Kc4 {[%clk 0:01:10]}  Nf6 {[%clk 0:00:18]} 44. Rf4 {[%clk 0:01:10]}  Ke6 {[%clk 0:00:18]} 45. Nc5+ {[%clk 0:01:10]}  Ke7 {[%clk 0:00:18]} 46. Ne4 {[%clk 0:01:09]}  Nd7 {[%clk 0:00:18]} 47. Ng5 {[%clk 0:01:08]}  h6 {[%clk 0:00:17]} 48. Nf7 {[%clk 0:01:01]}  Re2 {[%clk 0:00:14]} 49. e4 {[%clk 0:00:57]}  Rg2 {[%clk 0:00:14]} 50. Nxh6 {[%clk 0:00:56]}  Rc2+ {[%clk 0:00:13]} 51. Kd3 {[%clk 0:00:55]}  Rb2 {[%clk 0:00:13]} 52. Kc3 {[%clk 0:00:55]}  Rf2 {[%clk 0:00:14]} 53. Ng4 {[%clk 0:00:55]}  Ke6 {[%clk 0:00:13]} 54. Nxf2 {[%clk 0:00:55]} 1-0


[Site "https://www.chess.com"]

[Event "Titled Tuesday Blitz January 11 2022"]
[White "Matinian, Nikita"]
[Black "Jobava, Baadur"]
[WhiteFideId "24129100"]
[BlackFideId "13601520"]
[WhiteElo "2422"]
[BlackElo "2617"]
[Result "0-1"]
[Round "04"]
[TimeControl "180+1"]
[Date "2022.01.11"]
[WhiteClock "0:01:47"]
[BlackClock "0:02:09"]

1. e4 {[%clk 0:03:00]}  e6 {[%clk 0:02:59]} 2. d4 {[%clk 0:03:01]}  d5 {[%clk 0:03:00]} 3. Nc3 {[%clk 0:03:01]}  dxe4 {[%clk 0:03:00]} 4. Nxe4 {[%clk 0:03:01]}  Bd7 {[%clk 0:03:01]} 5. Nf3 {[%clk 0:03:02]}  Bc6 {[%clk 0:03:02]} 6. Bd3 {[%clk 0:03:02]}  Nd7 {[%clk 0:03:02]} 7. O-O {[%clk 0:03:02]}  Ngf6 {[%clk 0:03:03]} 8. Ng3 {[%clk 0:03:02]}  g6 {[%clk 0:03:03]} 9. Bg5 {[%clk 0:02:52]}  h6 {[%clk 0:03:01]} 10. Bd2 {[%clk 0:02:50]}  Bg7 {[%clk 0:03:01]} 11. Bb4 {[%clk 0:02:47]}  a5 {[%clk 0:02:57]} 12. Ba3 {[%clk 0:02:47]}  Bf8 {[%clk 0:02:57]} 13. Bxf8 {[%clk 0:02:44]}  Kxf8 {[%clk 0:02:57]} 14. Ne5 {[%clk 0:02:35]}  Nxe5 {[%clk 0:02:57]} 15. dxe5 {[%clk 0:02:36]}  Qd5 {[%clk 0:02:53]} 16. f3 {[%clk 0:02:32]}  Qxe5 {[%clk 0:02:52]} 17. Qd2 {[%clk 0:02:12]}  Qxb2 {[%clk 0:02:45]} 18. Qf4 {[%clk 0:02:12]}  Nd5 {[%clk 0:02:32]} 19. Qh4 {[%clk 0:02:09]}  Qf6 {[%clk 0:02:28]} 20. Qc4 {[%clk 0:02:07]}  Kg7 {[%clk 0:02:22]} 21. Rae1 {[%clk 0:02:07]}  Nb6 {[%clk 0:02:11]} 22. Qb3 {[%clk 0:01:57]}  Qd4+ {[%clk 0:02:10]} 23. Kh1 {[%clk 0:01:57]}  Qb4 {[%clk 0:02:10]} 24. h4 {[%clk 0:01:47]}  Rhd8 {[%clk 0:02:09]} 0-1


[Site "https://www.chess.com"]